Workbook

Sheet NEW BUYER
L3: RENT ROLL | M3: Unit Type | N3: Unit Mix | O3: Unit SF | P3: Rent | Q3: Rent Per SF | R3: Floor | S3: Notes
L4: 101 | M4: A | N4: 0/1.00 | O4: 395 | P4: 2095 | Q4: 5.3 | R4: 1 | S4: Patio
B5: # Units | D5: Address | F5: City | H5: Zip | I5: APN | L5: 102 | M5: B | N5: 0/1.00 | O5: 392 | P5: 2095 | Q5: 5.34 | R5: 1 | S5: No patio, large bathroom. AFFORDABLE @ 110% AMI
B6: 20 | C6: 4721 Felton St | F6: San Diego | H6: 92116 | L6: 103 | M6: C | N6: 1/1.00 | O6: 583 | P6: 2600 | Q6: 4.46 | R6: 1 | S6: No patio
L7: 104 | M7: G | N7: 0/1.00 | O7: 441 | P7: 1737 | Q7: 4.98 | R7: 1 | S7: No patio. AFFORDABLE @ 60% AMI
B8: Price | C8: Cap Ex/Basis | D8: GRM | F8: CAP Rate | H8: $ / Unit | L8: 201 | M8: D | N8: 2/2.00 | O8: 838 | P8: 3250 | Q8: 3.88 | R8: 2 | S8: Patio
B9: 8500000 | C9: 0 | D9: Current | E9: Market | F9: Current | G9: Market | H9: =B9/B6 -> 425000 | L9: 202 | M9: E | N9: 1/1.00 | O9: 488 | P9: 2495 | Q9: 5.11 | R9: 2 | S9: Patio, AFFORDABLE @ 110% AMI
C10: =B9+C9 -> 8500000 | D10: =B9/E41 -> 13.3882725 | E10: =C10/F41 -> 12.76998758 | F10: =E45/B9 -> 0.04816155365 | G10: =F45/C10 -> 0.05149404456 | L10: 203 | M10: E | N10: 1/1.00 | O10: 488 | P10: 2495 | Q10: 5.11 | R10: 2 | S10: Patio, AFFORDABLE @ 110% AMI
B11: Price | C11: Avg | D11: Gross Sq. Ft. | F11: Parcel Size | L11: 204 | M11: E1 | N11: 1/1.00 | O11: 474 | P11: 2450 | Q11: 5.17 | R11: 2 | S11: Patio, AFFORDABLE @ 110% AMI
B12: Per SF | C12: Unit SF | D12: (Approx.) | F12: (Approx.) | G12: Parking | H12: Yr. Built | L12: 205 | M12: J | N12: 1/1.00 | O12: 516 | P12: 2550 | Q12: 4.94 | R12: 2 | S12: Patio
B13: =B9/D13 -> 656.573459 | C13: =D13/B6 -> 647.3 | D13: 12946 | F13: 6744 | G13: 5 | H13: 2027 | L13: 206 | M13: F | N13: 1/1.00 | O13: 455 | P13: 1860 | Q13: 5.26 | R13: 2 | S13: No patio, AFFODABLE @ 60% AMI
C14: Income Detail | G14: Annual Operating Expenses | L14: 301 | M14: D | N14: 2/2.00 | O14: 838 | P14: 3300 | Q14: 3.94 | R14: 3 | S14: Patio
B15: # of Units | C15: Type | D15: Rent | E15: Total | G15: (Estimated) | L15: 302 | M15: E | N15: 1/1.00 | O15: 488 | P15: 2545 | Q15: 5.22 | R15: 3 | S15: Patio
B16: Current Income | F16: Esti. Expenses | H16: Prop Mgmt | I16: =E43*0.05 -> 30791.874 | L16: 303 | M16: E | N16: 1/1.00 | O16: 488 | P16: 2545 | Q16: 5.22 | R16: 3 | S16: Patio
B17: 3 | C17: Studio | D17: $2095 - $2195 | E17: =P4+P5+P7 -> 5927 | F17: Utilities | G17: 1500 | H17: Payroll/Fees | I17: =800*12 -> 9600 | L17: 304 | M17: E1 | N17: 1/1.00 | O17: 474 | P17: 2500 | Q17: 5.27 | R17: 3 | S17: Patio
B18: 14 | C18: 1BR 1BA | D18: $2395 - $2875 | E18: =P6+P9+P10+P11+P12+P13+P15+P16+P17+P18+P20+P21+P22+P23 -> 35430 | F18: Water/Sewer | G18: =70*12*B6 -> 16800 | H18: Insurance | I18: =600*B6 -> 12000 | L18: 305 | M18: H | N18: 1/1.00 | O18: 633 | P18: 2850 | Q18: 4.5 | R18: 3 | S18: Large deck
B19: 3 | C19: 2BR 2BA | D19: $3300 - $3325 | E19: =P8+P14+P19 -> 9875 | F19: Contracted | G19: 2400 | H19: License/Fees | L19: 401 | M19: D | N19: 2/2.00 | O19: 838 | P19: 3325 | Q19: 3.97 | R19: 4 | S19: Patio
F20: Trash | G20: 8000 | H20: Pool | L20: 402 | M20: E | N20: 1/1.00 | O20: 488 | P20: 2570 | Q20: 5.27 | R20: 4 | S20: Patio
F21: Pest Control | G21: 0 | H21: Misc/Reserves | I21: =250*B6 -> 5000 | L21: 403 | M21: E | N21: 1/1.00 | O21: 488 | P21: 2570 | Q21: 5.27 | R21: 4 | S21: Patio
F22: Maintenance | G22: =700*B6 -> 14000 | H22: Taxes* | I22: =B9*0.0125144 -> 106372.4 | L22: 404 | M22: E1 | N22: 1/1.00 | O22: 474 | P22: 2525 | Q22: 5.33 | R22: 4 | S22: Patio, AFFORDABLE @ 110% AMI
F23: Total Annual Expenses | H23: =SUM(G16:G22)+SUM(I16:I22) -> 206464.274 | L23: 405 | M23: H | N23: 1/1.00 | O23: 633 | P23: 2875 | Q23: 4.54 | R23: 4 | S23: Patio
B24: 5 | C24: Parking | D24: 75 | E24: =D24*B24 -> 375 | F24: Expenses per: | G24: Est. Sq. Ft. | H24: =H23/D13 -> 15.94811324 | L24: Total | M24: 20 | P24: =SUM(P4:P23) -> 51232
B25: 20 | C25: RUBS | D25: 65 | E25: =D25*B25 -> 1300 | G25: Unit | H25: =H23/B6 -> 10323.2137
B26: Total Monthly Income | E26: =SUM(E17:E25) -> 52907 | G26: % of GSI | H26: =H23/E41 -> 0.3251999956
L27: Construction Breakdown
B28: Market Income (5% Increase) | G28: Market Expenses | L28: Property Price | M28: 1595000
B29: 3 | C29: Studio | D29: =E29/B29 -> 2074.45 | E29: =E17*1.05 -> 6223.35 | F29: Esti. Expenses | G29: =G16 -> 0 | H29: Prop Mgmt | I29: =F43*0.05 -> 32282.7252 | L29: Hard Costs (Wermer Bid) | M29: 3632184
B30: 14 | C30: 1BR 1BA | D30: =E30/B30 -> 2657.25 | E30: =E18*1.05 -> 37201.5 | F30: Utilities | G30: =G17 -> 1500 | H30: OnSite Mgmt | I30: =I17 -> 9600 | L30: Contingengy (5%) | M30: =M29*0.05 -> 181609.2
B31: 3 | C31: 2BR 2BA | D31: 3456.25 | E31: =E19*1.05 -> 10368.75 | F31: Water/Sewer | G31: 16800 | H31: Insurance | I31: 12000 | L31: Water Sewer Fees | M31: 89000
F32: Contracted | G32: 2400 | H32: License/Fees | I32: 0 | L32: School Fees | M32: 67000
F33: Trash | G33: 8000 | H33: Pool | I33: 0 | L33: Total Project Costs | M33: =SUM(M28:M32) -> 5564793.2
F34: Pest Control | G34: 0 | H34: Misc/Reserves | I34: 5000
B35: 5 | C35: Parking | D35: 75 | E35: =D35*B35 -> 375 | F35: Maintenance | G35: 14000 | H35: Taxes* | I35: 106372.4 | L35: Initial Profit Margin | M35: =B9-M33 -> 2935206.8
B36: 20 | C36: RUBS | D36: 65 | E36: =D36*B36 -> 1300 | F36: Total Annual Expenses | H36: =SUM(G29:G35)+SUM(I29:I35) -> 207955.1252
B37: Total Monthly Income | E37: =SUM(E29:E36) -> 55468.6 | G37: % of GSI | H37: =H36/F41 -> 0.3124216902 | L37: Loan Sizer
L38: New Value Cap | M38: 0.7
B39: Annual Operating Proforma | G39: Financing Summary | L39: Capped Loan | M39: =M38*B9 -> 5950000
E40: Current | F40: Market | L40: LTC % Cap | M40: 0.8
B41: Gross Scheduled Income | E41: =E26*12 -> 634884 | F41: =E37*12 -> 665623.2 | G41: Down Payment | I41: =I42*B9 -> 3400000 | L41: Capped Loan | M41: =M40*(M33+350000) -> 4731834.56
B42: Less: Vacancy Factor | D42: 0.03 | E42: =E41*D42 -> 19046.52 | F42: =F41*D42 -> 19968.696 | I42: 0.4 | L42: Projected Loan | M42: =M41 -> 4731834.56
B43: Gross Operating Income | E43: =E41-E42 -> 615837.48 | F43: =F41-F42 -> 645654.504 | L43: Cost (1.5 points) | M43: =M42*0.0125 -> 59147.932
B44: Less: Expenses | D44: =H26 -> 0.3251999956 | E44: =H23 -> 206464.274 | F44: =H36 -> 207955.1252 | G44: =F44/F41 -> 0.3124216902 | L44: Rate | M44: 0.0995
B45: Net Operating Income | E45: =E43-E44 -> 409373.206 | F45: =F43-F44 -> 437699.3788 | G45: Proposed Financing: (I/O) | I45: =B9-I41 -> 5100000 | L45: Annual Mortgage | M45: =M42*M44 -> 470817.5387
G46: Interest Rate: | I46: 0.0625 | L46: Draw Rate | M46: 0.65
B47: Less: 1st TD Payments | E47: =-I45*I46 -> -318750 | F47: =E47 -> -318750 | G47: Amortized over: | I47: 0 | L47: Drawn Interest | M47: =M45*M46 -> 306031.4002
G49: Debt Coverage Ratio: | L49: Project Costs Summary
B50: Pre-Tax Cash Flow | E50: =E45+E47 -> 90623.206 | F50: =F45+F47 -> 118949.3788 | G50: Current: | I50: =E45/E47*-1 -> 1.284308097 | L50: Total Project Cost | M50: =M33 -> 5564793.2
G51: Market: | I51: =F45/F47*-1 -> 1.373174522 | L51: Loan Cost | M51: =M43 -> 59147.932
B52: Cash On Cash Return | E52: =E50/I41 -> 0.02665388412 | F52: =F50/(I41+C9) -> 0.03498511141 | L52: Drawn Interest | M52: =M47 -> 306031.4002
L53: Total Uses of Capital | M53: =SUM(M50:M52) -> 5929972.532
B54: Principal Reduction | E54: =(-E47)-(I45*I46) -> 0 | F54: =(-F47)-(I45*I46) -> 0
B55: Earned Return | E55: =(E50+E54)/I41 -> 0.02665388412 | F55: =(F50+F54)/(I41+C9) -> 0.03498511141 | L55: Construction Loan | M55: =M42 -> 4731834.56
B56: The Browar Group
B57: Florian Sighe | 619.894.3030 | florian@thebrowargroup.com | L57: Required Project Cash | M57: =M53-M55 -> 1198137.972
B59: The information contained herein has been obtained from sources believed reliable. While The Browar Group does not doubt its accuracy, we have not verified it, and make no guarantee, warranty or representation about it. It is your responsibility to independently confirm its accuracy and completeness. Any projections, opinions, assumptions, or estimates are used for example only and do not represent the current or future performance of the property. The value of this transaction to you depends on tax, financial, and legal advisors. You and your advisors should conduct a careful, independent, investigation of the property to determine to your satisfaction the suitability of the property to your needs. | L59: Value When Complete | M59: =B9 -> 8500000
L60: Loan Payoff | M60: =M42 -> 4731834.56
L61: Equity When Complete | M61: =M59-M60 -> 3768165.44
L63: Return On Equity | M63: =M61/M57 -> 3.145017959
L64: Project ROI | M64: =M61/M57 -> 3.145017959
